fUSD/lending_fUSD_20240814
["ID","MTS","AMOUNT","RATE_DAILY","PERIOD"]
[334848813,1723608655093,-1053.99,0.00013972,2]
[334848814,1723608655102,-500.0,0.00013972,2]
[334848815,1723608655111,-1778.96,0.00013972,2]
[334848816,1723608655121,-500.0,0.00013972,2]
[334848817,1723608655132,-1526.0,0.00013972,2]
[334848818,1723608655144,-2017.25,0.00013972,2]
[334848819,1723608655153,-2926.03,0.00013972,2]
[334848820,1723608655162,-500.0,0.00013972,2]
[334848821,1723608655172,-500.0,0.00013972,2]
[334848822,1723608655181,-500.0,0.00013972,2]
[334848823,1723608655191,-503.07,0.00013972,2]
[334848824,1723608655201,-500.0,0.00013972,2]
[334848825,1723608655210,-5717.78,0.00013972,2]
[334848826,1723608655220,-500.0,0.00013972,2]
[334848827,1723608655229,-642.19,0.00013972,2]
[334848828,1723608655238,-3098.65,0.00013972,2]
[334848829,1723608655247,-500.0,0.00013972,2]
[334848830,1723608655257,-656.57,0.00013972,2]
[334848831,1723608655266,-500.0,0.00013972,2]
[334848832,1723608655275,-1095.29,0.00013972,2]
[334848833,1723608655285,-882.67,0.00013972,2]
[334848834,1723608655294,-500.0,0.00013972,2]
[334848835,1723608655303,-500.0,0.00013972,2]
[334848836,1723608655312,-1011.58,0.00013972,2]
[334848837,1723608655322,-500.0,0.00013972,2]
[334848838,1723608655331,-1163.19,0.00013972,2]
[334848839,1723608655340,-1839.71,0.00013972,2]
[334848840,1723608655349,-4376.0,0.00013972,2]
[334848841,1723608655359,-975.95,0.00013972,2]
[334848842,1723608655368,-1824.75,0.00013972,2]
[334848843,1723608655380,-500.0,0.00013972,2]
[334848844,1723608655389,-2006.59,0.00013972,2]
[334848845,1723608655399,-500.0,0.00013972,2]
[334848846,1723608655408,-1129.83,0.00013972,2]
[334848847,1723608655417,-500.0,0.00013972,2]
[334848848,1723608655426,-2707.28,0.00013972,2]
[334848849,1723608655436,-599.59,0.00013972,2]
[334848850,1723608655445,-2816.43,0.00013972,2]
[334848851,1723608655455,-500.0,0.00013972,2]
[334848852,1723608655465,-1105.9,0.00013972,2]
[334848853,1723608655474,-1246.58,0.00013972,2]
[334848854,1723608655484,-500.0,0.00013972,2]
[334848855,1723608655493,-618.65,0.00013972,2]
[334848856,1723608655503,-3121.02,0.00013972,2]
[334848857,1723608655513,-500.0,0.00013972,2]
[334848858,1723608655524,-626.31,0.00013972,2]
[334848859,1723608655533,-1752.18,0.00013972,2]
[334848860,1723608655544,-2225.72,0.00013972,2]
[334848861,1723608655554,-500.0,0.00013972,2]
[334848862,1723608655566,-2944.16,0.00013972,2]
[334848863,1723608655576,-9258.3,0.00013972,2]
[334848864,1723608655586,-2087.95,0.00013972,2]
[334848865,1723608655597,-500.0,0.00013972,2]
[334848866,1723608655610,-2198.91,0.00013972,2]
[334848867,1723608655620,-500.0,0.00013972,2]
[334848868,1723608655632,-808.84,0.00013972,2]
[334848869,1723608655642,-500.0,0.00013972,2]
[334848870,1723608655651,-500.0,0.00013972,2]
[334848871,1723608655662,-4554.83,0.00013972,2]
[334848872,1723608655672,-1427.17,0.00013972,2]
[334848873,1723608655682,-334.0216637,0.00013972,2]
[334848874,1723608655693,-921.44,0.00013972,2]
[334848875,1723608655703,-2921.86,0.00013972,2]
[334848876,1723608655712,-1673.57,0.00013972,2]
[334848877,1723608655722,-500.0,0.00013972,2]
[334848878,1723608655731,-500.0,0.00013972,2]
[334848879,1723608655742,-1534.79,0.00013972,2]
[334848880,1723608655751,-1361.64,0.00013972,2]
[334848881,1723608655761,-500.0,0.00013972,2]
[334848882,1723608655771,-2395.86,0.00013972,2]
[334848883,1723608655780,-1145.41,0.00013972,2]
[334848884,1723608655790,-500.0,0.00013972,2]
[334848885,1723608655800,-721.76,0.00013972,2]
[334848886,1723608655809,-1304.76,0.00013972,2]
[334848887,1723608655818,-500.0,0.00013972,2]
[334848888,1723608655829,-2264.58,0.00013972,2]
[334848889,1723608655840,-500.0,0.00013972,2]
[334848890,1723608655850,-815.04,0.00013972,2]
[334848891,1723608655860,-500.0,0.00013972,2]
[334848892,1723608655869,-500.0,0.00013972,2]
[334848893,1723608655879,-1907.05,0.00013972,2]
[334848894,1723608655888,-1806.05,0.00013972,2]
[334848895,1723608655898,-1131.08,0.00013972,2]
[334848896,1723608655908,-1212.9,0.00013972,2]
[334848897,1723608655917,-500.0,0.00013972,2]
[334848898,1723608655926,-1344.73,0.00013972,2]
[334848899,1723608655937,-2166.65,0.00013972,2]
[334848900,1723608655946,-624.73,0.00013972,2]
[334848901,1723608655956,-1140.11,0.00013972,2]
[334848902,1723608655965,-500.0,0.00013972,2]
[334848903,1723608655976,-542.07,0.00013972,2]
[334848904,1723608655986,-500.0,0.00013972,2]
[334848905,1723608655996,-500.0,0.00013972,2]
[334848906,1723608656006,-150.74626756,0.00013972,2]
[334848907,1723608656015,-3301.13,0.00013972,2]
[334848908,1723608656025,-500.0,0.00013972,2]
[334848909,1723608656035,-6159.22,0.00013972,2]
[334848910,1723608656044,-500.0,0.00013972,2]
[334848911,1723608656054,-500.0,0.00013972,2]
[334848912,1723608656063,-1709.06,0.00013972,2]
[334848913,1723608656073,-716.65,0.00013972,2]
[334848914,1723608656082,-500.0,0.00013972,2]
[334848915,1723608656091,-1367.96,0.00013972,2]
[334848916,1723608656101,-1283.34,0.00013972,2]
[334848917,1723608656110,-2548.93,0.00013972,2]
[334848918,1723608656120,-1804.8,0.00013972,2]
[334848919,1723608656132,-500.0,0.00013972,2]
[334848920,1723608656142,-500.0,0.00013972,2]
[334848921,1723608656152,-500.0,0.00013972,2]
[334848922,1723608656161,-500.0,0.00013972,2]
[334848923,1723608656171,-1452.12,0.00013972,2]
[334848924,1723608656180,-973.11,0.00013972,2]
[334848925,1723608656189,-1267.99,0.00013972,2]
[334848926,1723608656199,-2044.42,0.00013972,2]
[334848927,1723608656209,-1469.01,0.00013972,2]
[334848928,1723608656219,-774.67,0.00013972,2]
[334848929,1723608656229,-500.0,0.00013972,2]
[334848930,1723608656239,-1790.3,0.00013972,2]
[334848931,1723608656249,-588.02,0.00013972,2]
[334848932,1723608656259,-2135.05,0.00013972,2]
[334848933,1723608656269,-500.0,0.00013972,2]
[334848934,1723608656279,-500.0,0.00013972,2]
[334848935,1723608656289,-500.0,0.00013972,2]
[334848936,1723608656299,-672.65,0.00013972,2]
[334848937,1723608656308,-4327.53,0.00013972,2]
[334848938,1723608656318,-1671.79,0.00013972,2]
[334848939,1723608656328,-500.0,0.00013972,2]
[334848940,1723608656338,-500.0,0.00013972,2]
[334848941,1723608656348,-500.0,0.00013972,2]
[334848942,1723608656357,-5195.17,0.00013972,2]
[334848943,1723608656367,-1257.22,0.00013972,2]
[334848944,1723608656377,-500.0,0.00013972,2]
[334848945,1723608656392,-1249.15,0.00013972,2]
[334848946,1723608656402,-500.0,0.00013972,2]
[334848947,1723608656412,-1152.49,0.00013972,2]
[334848948,1723608656422,-10653.27,0.00013972,2]
[334848949,1723608656431,-2026.79,0.00013972,2]
[334848950,1723608656441,-1264.26,0.00013972,2]
[334848951,1723608656451,-2128.52,0.00013972,2]
[334848952,1723608656460,-866.15,0.00013972,2]
[334848953,1723608656469,-628.22,0.00013972,2]
[334848954,1723608656479,-3201.04,0.00013972,2]
[334848955,1723608656488,-500.0,0.00013972,2]
[334848956,1723608656498,-2982.77,0.00013972,2]
[334848957,1723608656508,-1151.63,0.00013972,2]
[334848958,1723608656517,-4855.25,0.00013972,2]
[334848959,1723608656527,-912.61,0.00013972,2]
[334848960,1723608656536,-684.25,0.00013972,2]
[334848961,1723608656546,-2320.06,0.00013972,2]
[334848962,1723608656555,-500.0,0.00013972,2]
[334848963,1723608656565,-1526.8,0.00013972,2]
[334848964,1723608656574,-3412.08,0.00013972,2]
[334848965,1723608656584,-2389.0,0.00013972,2]
[334848966,1723608656593,-3034.43,0.00013972,2]
[334848967,1723608656603,-500.0,0.00013972,2]
[334848968,1723608656617,-500.0,0.00013972,2]
[334848969,1723608656626,-1912.78,0.00013972,2]
[334848970,1723608656639,-4002.71,0.00013972,2]
[334848971,1723608656648,-500.0,0.00013972,2]
[334848972,1723608656658,-500.0,0.00013972,2]
[334848973,1723608656668,-500.0,0.00013972,2]
[334848974,1723608656678,-2048.96,0.00013972,2]
[334848975,1723608656690,-500.0,0.00013972,2]
[334848976,1723608656780,-500.0,0.00013972,2]
[334848977,1723608656790,-5734.17,0.00013972,2]
[334848978,1723608656799,-812.05,0.00013972,2]
[334848979,1723608656808,-1367.42,0.00013972,2]
[334848980,1723608656817,-9080.52,0.00013972,2]
[334848981,1723608656826,-790.5,0.00013972,2]
[334848982,1723608656836,-500.0,0.00013972,2]
[334848983,1723608656845,-674.87,0.00013972,2]
[334848984,1723608656854,-45233.68731701,0.00014246,2]
[334848985,1723608656864,-500.0,0.00014246,2]
[334848986,1723608656873,-521.69673044,0.00014246,2]
[334848987,1723608656884,-550.36,0.00014246,2]
[334848988,1723608656893,-744.62,0.00014246,2]
[334848989,1723608656903,-500.0,0.00014246,2]
[334848990,1723608656912,-808.56,0.00014246,2]
[334848991,1723608656921,-500.0,0.00014246,2]
[334848992,1723608656930,-867.77,0.00014246,2]
[334848993,1723608656940,-500.0,0.00014246,2]
[334848994,1723608656949,-1524.25,0.00014246,2]
[334848995,1723608656958,-500.0,0.00014246,2]
[334848996,1723608656967,-500.0,0.00014246,2]
[334848997,1723608656976,-500.0,0.00014246,2]
[334848998,1723608656985,-500.0,0.00014246,2]
[334848999,1723608656994,-500.0,0.00014246,2]
[334849000,1723608657004,-500.0,0.00014246,2]
[334849001,1723608657013,-500.0,0.00014246,2]
[334849002,1723608657023,-1120.87,0.00014246,2]
[334849003,1723608657033,-794.3,0.00014246,2]
[334849004,1723608657042,-500.0,0.00014246,2]
[334849005,1723608657052,-1356.55,0.00014246,2]
[334849006,1723608657061,-500.0,0.00014246,2]
[334849007,1723608657070,-500.0,0.00014246,2]
[334849008,1723608657080,-1103.27,0.00014246,2]
[334849009,1723608657089,-511.58751272,0.00014246,2]
[334849010,1723608657098,-1233.42,0.00014246,2]
[334849011,1723608657107,-1108.58,0.00014246,2]
[334849012,1723608657117,-500.0,0.00014246,2]
[334849013,1723608657126,-500.0,0.00014246,2]
[334849014,1723608657138,-500.0,0.00014246,2]
[334849015,1723608657147,-500.0,0.00014246,2]
[334849016,1723608657156,-730.63,0.00014246,2]
[334849017,1723608657165,-500.0,0.00014246,2]
[334849018,1723608657174,-835.96,0.00014246,2]
[334849019,1723608657183,-828.99,0.00014246,2]
[334849020,1723608657193,-1105.99,0.00014246,2]
[334849021,1723608657204,-646.4,0.00014246,2]
[334849022,1723608657213,-1354.23,0.00014246,2]
[334849023,1723608657223,-653.83,0.00014246,2]
[334849024,1723608657232,-500.0,0.00014246,2]
[334849025,1723608657241,-1040.79,0.00014246,2]
[334849026,1723608657250,-500.0,0.00014246,2]
[334849027,1723608657259,-1439.89,0.00014246,2]
[334849028,1723608657268,-500.0,0.00014246,2]
[334849029,1723608657277,-500.0,0.00014246,2]
[334849030,1723608657287,-500.0,0.00014246,2]
[334849031,1723608657296,-500.0,0.00014246,2]
[334849032,1723608657306,-1836.34,0.00014246,2]
[334849033,1723608657315,-500.0,0.00014246,2]
[334849034,1723608657324,-500.0,0.00014246,2]
[334849035,1723608657333,-836.32,0.00014246,2]
[334849036,1723608657342,-503.44,0.00014246,2]
[334849037,1723608657351,-500.0,0.00014246,2]
[334849038,1723608657360,-500.0,0.00014246,2]
[334849039,1723608657370,-500.0,0.00014246,2]
[334849040,1723608657379,-500.0,0.00014246,2]
[334849041,1723608657388,-500.0,0.00014246,2]
[334849042,1723608657398,-558.96,0.00014246,2]
[334849043,1723608657407,-500.0,0.00014246,2]
[334849044,1723608657416,-500.0,0.00014246,2]
[334849045,1723608657426,-500.0,0.00014246,2]
[334849046,1723608657435,-500.0,0.00014246,2]
[334849047,1723608657445,-545.83,0.00014246,2]
[334849048,1723608657454,-500.0,0.00014246,2]
[334849049,1723608657463,-639.00330198,0.00014246,2]
[334849050,1723608657473,-1376.48,0.00014246,2]
[334849051,1723608657482,-500.0,0.00014246,2]
[334849052,1723608657492,-500.0,0.00014246,2]
[334849053,1723608657501,-500.0,0.00014246,2]
[334849054,1723608657511,-500.0,0.00014246,2]
[334849055,1723608657520,-500.0,0.00014246,2]
[334849056,1723608657530,-500.0,0.00014246,2]
[334849057,1723608657540,-631.38,0.00014246,2]
[334849058,1723608657549,-500.0,0.00014246,2]
[334849059,1723608657559,-500.0,0.00014246,2]
[334849060,1723608657569,-533.40439372,0.00014246,2]
[334849061,1723608658077,-471.68560628,0.00014246,2]
[334849062,1723608658087,-676.06,0.00014246,2]
[334849063,1723608658096,-636.2,0.00014246,2]
[334849064,1723608658105,-504.51518365,0.00014246,2]
[334849065,1723608658115,-500.0,0.00014246,2]
[334849066,1723608658124,-937.05,0.00014246,2]
[334849067,1723608658134,-518.59,0.00014246,2]
[334849068,1723608658143,-824.77,0.00014246,2]
[334849069,1723608658153,-527.23,0.00014246,2]
[334849070,1723608658163,-500.0,0.00014246,2]
[334849071,1723608658173,-500.0,0.00014246,2]
[334849072,1723608658182,-500.0,0.00014246,2]
[334849073,1723608658191,-500.0,0.00014246,2]
[334849074,1723608658201,-500.0,0.00014246,2]
[334849075,1723608658210,-500.0,0.00014246,2]
[334849076,1723608658220,-719.78,0.00014246,2]
[334849077,1723608658230,-229.42986523,0.00014246,2]
[334849078,1723608658239,-500.0,0.00014246,2]
[334849079,1723608658249,-500.0,0.00014246,2]
[334849080,1723608658259,-500.0,0.00014246,2]
[334849081,1723608658268,-500.0,0.00014246,2]
[334849082,1723608658278,-400.0,0.00014246,2]
[334849083,1723608658287,-711.77495815,0.00014246,2]
[334849084,1723608659520,-10000.0,0.00012239,2]
[334849085,1723608659529,-136.65504185,0.00014246,2]
[334849086,1723608659539,-500.0,0.00014246,2]
[334849087,1723608659548,-500.0,0.00014246,2]
[334849088,1723608659558,-500.0,0.00014246,2]
[334849089,1723608659567,-500.0,0.00014246,2]
[334849090,1723608659575,-622.32,0.00014246,2]
[334849091,1723608659584,-500.0,0.00014246,2]
[334849092,1723608659593,-1201.53,0.00014246,2]
[334849093,1723608659603,-500.0,0.00014246,2]
[334849094,1723608659614,-780.65,0.00014246,2]
[334849095,1723608659623,-500.0,0.00014246,2]
[334849096,1723608659633,-505.71,0.00014246,2]
[334849097,1723608659642,-500.0,0.00014246,2]
[334849098,1723608659651,-500.0,0.00014246,2]
[334849099,1723608659661,-500.0,0.00014246,2]
[334849100,1723608659670,-837.89,0.00014246,2]
[334849101,1723608659678,-788.27,0.00014246,2]
[334849102,1723608659688,-500.0,0.00014246,2]
[334849103,1723608659697,-537.59,0.00014246,2]
[334849104,1723608659705,-597.57,0.00014246,2]
[334849105,1723608659715,-797.14,0.00014246,2]
[334849106,1723608659724,-500.0,0.00014246,2]
[334849107,1723608659733,-500.0,0.00014246,2]
[334849108,1723608659744,-577.89,0.00014246,2]
[334849109,1723608659752,-574.57,0.00014246,2]
[334849110,1723608659761,-500.0,0.00014246,2]
[334849111,1723608659770,-500.0,0.00014246,2]
[334849112,1723608659780,-500.0,0.00014246,2]
[334849113,1723608659789,-605.128821,0.00014246,2]
[334849114,1723608659798,-500.0,0.00014246,2]
[334849115,1723608659807,-500.0,0.00014246,2]
[334849116,1723608659815,-500.0,0.00014246,2]
[334849117,1723608659824,-571.82,0.00014246,2]
[334849118,1723608659834,-1368.81,0.00014246,2]
[334849119,1723608659842,-500.0,0.00014246,2]
[334849120,1723608659852,-500.0,0.00014246,2]
[334849121,1723608659861,-500.0,0.00014246,2]
[334849122,1723608659870,-500.0,0.00014246,2]
[334849123,1723608659880,-500.0,0.00014246,2]
[334849124,1723608659889,-500.0,0.00014246,2]
[334849125,1723608659898,-1348.28,0.00014246,2]
[334849126,1723608659906,-854.16,0.00014246,2]
[334849127,1723608659915,-500.0,0.00014246,2]
[334849128,1723608659924,-595.01,0.00014246,2]
[334849129,1723608659933,-1071.46,0.00014246,2]
[334849130,1723608659942,-500.0,0.00014246,2]
[334849131,1723608659952,-718.76,0.00014246,2]
[334849132,1723608659962,-500.0,0.00014246,2]
[334849133,1723608659971,-609.82,0.00014246,2]
[334849134,1723608659982,-500.0,0.00014246,2]
[334849135,1723608659991,-500.0,0.00014246,2]
[334849136,1723608660000,-500.0,0.00014246,2]
[334849137,1723608660009,-674.91,0.00014246,2]
[334849138,1723608660018,-500.0,0.00014246,2]
[334849139,1723608660146,-500.0,0.00014246,2]
[334849140,1723608660156,-500.0,0.00014246,2]
[334849141,1723608660165,-500.0,0.00014246,2]
[334849142,1723608660175,-1338.69,0.00014246,2]
[334849143,1723608660185,-825.9,0.00014246,2]
[334849144,1723608660194,-500.0,0.00014246,2]
[334849145,1723608660203,-500.0,0.00014246,2]
[334849146,1723608660213,-1294.15,0.00014246,2]
[334849147,1723608660222,-500.0,0.00014246,2]
[334849148,1723608660231,-1205.28,0.00014246,2]
[334849149,1723608660241,-500.0,0.00014246,2]
[334849150,1723608660250,-504.65,0.00014246,2]
[334849151,1723608660260,-500.0,0.00014246,2]
[334849152,1723608660269,-936.58,0.00014246,2]
[334849153,1723608660278,-500.0,0.00014246,2]
[334849154,1723608660288,-844.31,0.00014246,2]
[334849155,1723608660297,-2383.1,0.00014246,2]
[334849156,1723608660306,-500.0,0.00014246,2]
[334849157,1723608660315,-500.0,0.00014246,2]
[334849158,1723608660324,-500.0,0.00014246,2]
[334849159,1723608660334,-1048.93,0.00014246,2]
[334849160,1723608660343,-500.0,0.00014246,2]
[334849161,1723608660352,-500.0,0.00014246,2]
[334849162,1723608660360,-840.01,0.00014246,2]
[334849163,1723608660369,-500.0,0.00014246,2]
[334849164,1723608660378,-500.0,0.00014246,2]
[334849165,1723608660388,-983.33,0.00014246,2]
[334849166,1723608660397,-500.0,0.00014246,2]
[334849167,1723608660406,-2203.8,0.00014246,2]
[334849168,1723608660415,-500.0,0.00014246,2]
[334849169,1723608660424,-500.0,0.00014246,2]
[334849170,1723608660433,-500.0,0.00014246,2]
[334849171,1723608660443,-500.0,0.00014246,2]
[334849172,1723608660452,-653.89,0.00014246,2]
[334849173,1723608660461,-589.62,0.00014246,2]
[334849174,1723608660471,-500.0,0.00014246,2]
[334849175,1723608660480,-906.8,0.00014246,2]
[334849176,1723608660490,-553.87,0.00014246,2]
[334849177,1723608660499,-539.12315578,0.00014246,2]
[334849178,1723608660509,-500.0,0.00014246,2]
[334849179,1723608660518,-500.0,0.00014246,2]
[334849180,1723608660527,-851.73,0.00014246,2]
[334849181,1723608660537,-1068.57,0.00014246,2]
[334849182,1723608660546,-707.26,0.00014246,2]
[334849183,1723608660556,-500.0,0.00014246,2]
[334849184,1723608660565,-500.0,0.00014246,2]
[334849185,1723608660574,-500.0,0.00014246,2]
[334849186,1723608660583,-1487.04,0.00014246,2]
[334849187,1723608660592,-500.0,0.00014246,2]
[334849188,1723608660601,-500.0,0.00014246,2]
[334849189,1723608660612,-500.52,0.00014246,2]
[334849190,1723608660623,-243.25691331,0.00014246,2]
[334849191,1723608660633,-500.0,0.00014246,2]
[334849192,1723608660642,-785.14,0.00014246,2]
[334849193,1723608660651,-1183.99,0.00014246,2]
[334849194,1723608660660,-500.0,0.00014246,2]
[334849195,1723608660670,-891.13,0.00014246,2]
[334849196,1723608660679,-1693.29,0.00014246,2]
[334849197,1723608660689,-500.0,0.00014246,2]
[334849198,1723608660699,-520.69,0.00014246,2]
[334849199,1723608660708,-500.0,0.00014246,2]
[334849200,1723608660717,-1306.68,0.00014246,2]
[334849201,1723608660727,-1104.3,0.00014246,2]
[334849202,1723608660737,-500.0,0.00014246,2]
[334849203,1723608660747,-500.0,0.00014246,2]
[334849204,1723608660756,-500.0,0.00014246,2]
[334849205,1723608660766,-655.92,0.00014246,2]
[334849206,1723608660780,-500.0,0.00014246,2]
[334849207,1723608660790,-500.0,0.00014246,2]
[334849208,1723608660799,-500.0,0.00014246,2]
[334849209,1723608660808,-658.06,0.00014246,2]
[334849210,1723608660817,-500.0,0.00014246,2]
[334849211,1723608660827,-500.0,0.00014246,2]
[334849212,1723608660837,-929.28,0.00014246,2]
[334849213,1723608660848,-500.0,0.00014246,2]
[334849214,1723608660858,-500.0,0.00014246,2]
[334849215,1723608660868,-500.0,0.00014246,2]
[334849216,1723608660878,-1239.95,0.00014246,2]
[334849217,1723608660891,-586.24,0.00014246,2]
[334849218,1723608660901,-500.0,0.00014246,2]
[334849219,1723608660910,-500.0,0.00014246,2]
[334849220,1723608660920,-500.0,0.00014246,2]
[334849221,1723608660930,-500.0,0.00014246,2]
[334849222,1723608660941,-980.27,0.00014246,2]
[334849223,1723608660951,-1025.28,0.00014246,2]
[334849224,1723608660960,-574.97,0.00014246,2]
[334849225,1723608660970,-500.0,0.00014246,2]
[334849226,1723608660979,-500.0,0.00014246,2]
[334849227,1723608660989,-500.0,0.00014246,2]
[334849228,1723608660999,-500.0,0.00014246,2]
[334849229,1723608661008,-500.0,0.00014246,2]
[334849230,1723608661018,-502.34,0.00014246,2]
[334849231,1723608661028,-1139.57,0.00014246,2]
[334849232,1723608661037,-1126.25,0.00014246,2]
[334849233,1723608661047,-1119.88,0.00014246,2]
[334849234,1723608661057,-501.73,0.00014246,2]
[334849235,1723608661067,-500.0,0.00014246,2]
[334849236,1723608661076,-500.0,0.00014246,2]
[334849237,1723608661085,-1418.53,0.00014246,2]
[334849238,1723608661095,-581.42,0.00014246,2]
[334849239,1723608661105,-500.0,0.00014246,2]
[334849240,1723608661114,-764.48,0.00014246,2]
[334849241,1723608661125,-500.0,0.00014246,2]
[334849242,1723608661137,-500.0,0.00014246,2]
[334849243,1723608661147,-500.0,0.00014246,2]
[334849244,1723608661157,-500.0,0.00014246,2]
[334849245,1723608661166,-500.0,0.00014246,2]
[334849246,1723608661178,-967.96,0.00014246,2]
[334849247,1723608661188,-1003.06,0.00014246,2]
[334849248,1723608661198,-641.34,0.00014246,2]
[334849249,1723608661208,-500.0,0.00014246,2]
[334849250,1723608661218,-740.6,0.00014246,2]
[334849251,1723608661228,-596.48,0.00014246,2]
[334849252,1723608661237,-1531.16,0.00014246,2]
[334849253,1723608661247,-500.0,0.00014246,2]
[334849254,1723608661257,-500.0,0.00014246,2]
[334849255,1723608661267,-500.0,0.00014246,2]
[334849256,1723608661277,-500.0,0.00014246,2]
[334849257,1723608661287,-500.0,0.00014246,2]
[334849258,1723608661297,-667.41,0.00014246,2]
[334849259,1723608661306,-500.0,0.00014246,2]
[334849260,1723608661316,-500.0,0.00014246,2]
[334849261,1723608661325,-500.0,0.00014246,2]
[334849262,1723608661335,-993.45,0.00014246,2]
[334849263,1723608661345,-500.0,0.00014246,2]
[334849264,1723608661355,-1049.74,0.00014246,2]
[334849265,1723608661364,-1206.79,0.00014246,2]
[334849266,1723608661374,-1050.39,0.00014246,2]
[334849267,1723608661385,-500.0,0.00014246,2]
[334849268,1723608661396,-500.0,0.00014246,2]
[334849269,1723608661405,-500.0,0.00014246,2]
[334849270,1723608661415,-500.0,0.00014246,2]
[334849271,1723608661424,-1037.24,0.00014246,2]
[334849272,1723608661434,-500.0,0.00014246,2]
[334849273,1723608661444,-500.0,0.00014246,2]
[334849274,1723608661454,-500.0,0.00014246,2]
[334849275,1723608661464,-500.0,0.00014246,2]
[334849276,1723608661474,-500.0,0.00014246,2]
[334849277,1723608661484,-500.0,0.00014246,2]
[334849278,1723608661494,-1644.67,0.00014246,2]
[334849279,1723608661503,-500.0,0.00014246,2]
[334849280,1723608661514,-489.88863128,0.00014246,2]
[334849281,1723608661523,-560.98,0.00014246,2]
[334849282,1723608661533,-500.0,0.00014246,2]
[334849283,1723608661543,-500.0,0.00014246,2]
[334849284,1723608661553,-500.0,0.00014246,2]
[334849285,1723608661563,-579.89,0.00014246,2]
[334849286,1723608661573,-655.03,0.00014246,2]
[334849287,1723608661583,-500.0,0.00014246,2]
[334849288,1723608661592,-500.0,0.00014246,2]
[334849289,1723608661602,-500.0,0.00014246,2]
[334849290,1723608661616,-500.0,0.00014246,2]
[334849291,1723608661626,-500.0,0.00014246,2]
[334849292,1723608661638,-615.75,0.00014246,2]
[334849293,1723608661651,-1908.0,0.00014246,2]
[334849294,1723608661662,-786.52,0.00014246,2]
[334849295,1723608661671,-500.0,0.00014246,2]
[334849296,1723608661681,-608.76,0.00014246,2]
[334849297,1723608661692,-500.0,0.00014246,2]
[334849298,1723608661702,-150.0,0.00014246,2]
[334849299,1723608661712,-500.0,0.00014246,2]
[334849300,1723608661722,-500.0,0.00014246,2]
[334849301,1723608661732,-738.54,0.00014246,2]
[334849302,1723608661742,-500.0,0.00014246,2]
[334849303,1723608661752,-639.45,0.00014246,2]
[334849304,1723608661763,-500.21,0.00014246,2]
[334849305,1723608661773,-863.3,0.00014246,2]
[334849306,1723608661782,-500.0,0.00014246,2]
[334849307,1723608661792,-500.0,0.00014246,2]
[334849308,1723608661802,-365.07858572,0.00014246,2]
[334849309,1723608661812,-642.44,0.00014246,2]
[334849310,1723608661821,-572.8,0.00014246,2]
[334849311,1723608661832,-943.47,0.00014246,2]
[334849312,1723608661842,-500.0,0.00014246,2]